{"text_format":"1","workbook":"xlsx","n_sheets":3,"sheets":["Bracket","Names","Progression"],"not_rendered":{"charts":0,"images":0,"macros":1,"external_links":0,"defined_names":0,"comments":0,"pivot_tables":0},"unopened":[],"bounds":{"document_bytes":16777216,"sheet_cells":100000,"rows_first":2000,"rows_last":500,"rows_between":2000,"halvings":0,"cell_chars":16384,"cell_head_chars":4096},"cells_cut":0,"cells_raw":0,"read":"whole","date_system":"1900"}

{"sheet":"Bracket","index":0,"n_rows":44,"n_cols":22,"rows_kept":44,"cut":false,"hidden":false,"merged":[[0,0,1,6]]}
["Hannoske's automated bracket.",null,null,null,null,null,null,"There can be a maximum of 32 people in the bracket",null,null,null,null,null,null,null,null,null,""]
[null,null,null,null,null,null,null,"This bracket is run random placement, double elimination",null,null,null,null,null,null,null,null,"",17]
[null,null,"To end the program, type \"end\" into any input box, it will resume from where you left off, unless you press reset.",null,null,null,null,null,null,null,null,null,null,null,null,"",33,""]
[null,null,null,null,null,null,null,null,"*Remember to clear names before you press \"input names\"",null,null,null,null,null,null,null,""]
[null,null,null,null,null,null,null,null,null,null,null,null,null,null,"",41,null,""]
[null,null,null,null,null,null,null,null,null,null,null,null,null,null,null,null,"",18]
[null,null,null,null,null,null,null,null,null,null,null,null,null,"",49,"",34,""]
[null,null,null,null,null,null,null,null,null,null,null,null,null,null,null,null,""]
[null,null,null,null,null,null,null,null,null,null,null,null,null,null,"",null,null,""]
[1,"a","a",null,null,null,null,null,null,null,null,null,null,null,null,null,"",19]
[null,"l",null,"",null,null,null,"Places","Points",null,null,null,"",53,null,"",35,""]
[2,"p","",null,null,null,1,"",9,null,null,null,null,null,null,null,""]
[null,"u",null,45,"",null,2,"",7,null,null,null,null,null,"",42,null,""]
[3,"k","",null,null,null,3,"",5,null,null,null,null,null,null,null,"",20]
[null,"z",26,"",null,null,4,"",3,null,null,"",57,"",50,"",36,""]
[4,"s","",null,null,null,5,"",2,null,null,null,null,null,null,null,""]
[null,1,null,null,55,"",6,"",1,null,null,null,null,null,"",null,null,""]
[5,"v","",null,null,null,null,null,null,null,null,null,null,null,null,null,"",21]
[null,"e",27,"",null,null,null,null,null,null,null,null,"",null,null,"",37,""]
[6,"d","",null,null,null,null,null,null,null,null,null,null,null,null,null,""]
[null,3,null,46,"",null,null,null,null,null,null,null,null,null,"",43,null,""]
[7,"h","",null,null,null,null,null,null,null,null,null,null,null,null,null,"",22]
[null,2,28,"",null,null,null,null,null,"",null,59,null,"",51,"",38,""]
[8,"w","",null,null,null,null,"",null,null,null,null,null,null,null,null,""]
[null,"g",null,null,null,60,"",63,"",61,null,null,null,null,"",null,null,""]
[9,"t","",null,null,null,null,null,null,null,null,null,null,null,null,null,"",23]
[null,"i",29,"",null,null,null,null,null,"",null,null,"",54,null,"",39,""]
[10,"b","",null,null,null,null,null,null,null,null,null,null,null,null,null,""]
[null,"j",null,47,"",null,null,null,null,null,null,null,null,null,"",44,null,""]
[11,"n","",null,null,null,null,null,null,null,null,null,null,null,null,null,"",24]
[null,"c",30,"",null,null,null,null,null,null,null,"",58,"",52,"",40,""]
[12,"x","",null,null,null,null,null,null,null,null,null,null,null,null,null,""]
[null,"m",null,null,56,"",null,null,null,null,"",null,null,null,""]
[13,"q","",null,null,null,null,null,null,"",62]
[null,"o",31,"",null,null,null,null,null,null,"",null,""]
[14,6,""]
[null,5,null,48,""]
[15,4,""]
[null,"r",32,""]
[16,"f",""]
[null,"y"]
[]
[]
[null,null,null,null,null,null,null,null,null,null,null,null,null,null,null,null,null,null,null,null,null,"Who won? 9 or 1?"]

{"sheet":"Names","index":1,"n_rows":35,"n_cols":9,"rows_kept":35,"cut":false,"hidden":false,"merged":[]}
["Names:","Random:"]
["q","a",null,null,null,null,null,null,1]
["w","y",null,null,null,null,null,null,2]
["e","g",null,null,null,null,null,null,3]
["r","t",null,null,null,null,null,null,4]
["t",1,null,null,null,null,null,null,5]
["y","q",null,null,null,null,null,null,6]
["u","v",null,null,null,null,null,null,{"$f":"I7+1","v":7}]
["i","m",null,8,null,null,null,null,{"$f":"I8+1","v":8}]
["o","u",null,null,null,null,null,null,9]
["p","j",null,null,null,null,null,null,10]
["a",3,null,null,null,null,null,null,11]
["s",5,null,null,null,null,null,null,12]
["d","k",null,null,null,null,null,null,13]
["f","n",null,null,null,null,null,null,14]
["g",4,null,null,null,null,null,null,15]
["h","h",null,16,null,null,null,null,16]
["j","l",null,null,null,null,null,null,17]
["k","i",null,null,null,null,null,null,18]
["l","w",null,null,null,null,null,null,19]
["z","f",null,null,null,null,null,null,20]
["x","z",null,null,null,null,null,null,21]
["c","c",null,null,null,null,null,null,22]
["v","e",null,null,null,null,null,null,23]
["b","o",null,null,null,null,null,null,24]
["n","p",null,null,null,null,null,null,25]
["m","b",null,null,null,null,null,null,26]
[1,2,null,null,null,null,null,null,27]
[2,"r",null,null,null,null,null,null,28]
[3,"s",null,null,null,null,null,null,29]
[4,"x",null,null,null,null,null,null,30]
[5,"d",null,null,null,null,null,null,31]
[6,6,null,"MAX=32",null,null,null,null,32]
[]
[32]

{"sheet":"Progression","index":2,"n_rows":40,"n_cols":18,"rows_kept":40,"cut":false,"hidden":false,"merged":[]}
[null,null,null,null,5,null,null,null,null,10,null,null,null,null,15,null,null,"L1"]
[null,null,null,null,null,null,null,null,null,null,null,null,null,null,null,null,"W17",17]
[null,null,null,null,null,null,null,null,null,null,null,null,null,null,null,"W33",33,"L2"]
[null,null,null,null,null,null,null,null,null,null,null,null,null,null,null,null,"L29"]
[null,null,null,null,null,null,null,null,null,null,null,null,null,null,"W41",41,null,"L3"]
[null,null,null,null,null,null,null,null,null,null,null,null,null,null,null,null,"W18",18]
[null,null,null,null,null,null,null,null,null,null,null,null,null,"W49",49,"W34",34,"L4"]
[null,null,null,null,null,null,null,null,null,null,null,null,null,null,null,null,"L30"]
[null,null,null,null,null,null,null,null,null,null,null,null,null,null,"L48",null,null,"L5"]
[1,null,"W1",null,null,null,null,null,null,null,null,null,null,null,null,null,"W19",19]
[null,null,25,"W25",null,null,null,"Places","Points",null,null,null,"W53",53,null,"W35",35,"L6"]
[2,null,"W2",null,null,null,1,"W63",9,null,null,null,null,null,null,null,"L31"]
[null,null,null,45,"W45",null,2,"L63",7,null,null,null,null,null,"W42",42,null,"L7"]
[3,null,"W3",null,null,null,3,"L61",5,null,null,null,null,null,null,null,"W20",20]
[null,null,26,"W26",null,null,4,"L59",3,null,null,"W57",57,"W50",50,"W36",36,"L8"]
[4,null,"W4",null,null,null,5,"W62",2,null,null,null,null,null,null,null,"L32"]
[null,null,null,null,55,"W55",6,"L62",1,null,null,null,null,null,"L47",null,null,"L9"]
[5,null,"W5",null,null,null,null,null,null,null,null,null,null,null,null,null,"W21",21]
[null,null,27,"W27",null,null,null,null,null,null,null,null,"L55",null,null,"W37",37,"L10"]
[6,null,"W6",null,null,null,null,null,null,null,null,null,null,null,null,null,"L25"]
[null,null,null,46,"W46",null,null,null,null,null,null,null,null,null,"W43",43,null,"L11"]
[7,null,"W7",null,null,null,null,null,null,null,null,null,null,null,null,null,"W22",22]
[null,null,28,"W28",null,null,null,null,null,"W59",null,59,null,"W51",51,"W38",38,"L12"]
[8,null,"W8",null,null,null,null,"W63",null,null,null,null,null,null,null,null,"L26"]
[null,null,null,null,null,60,"W60",63,"W61",61,null,null,null,null,"L46",null,null,"L13"]
[9,null,"W9",null,null,null,null,null,null,null,null,null,null,null,null,null,"W23",23]
[null,null,29,"W29",null,null,null,null,null,"L60",null,null,"W54",54,null,"W39",39,"L14"]
[10,null,"W10",null,null,null,null,null,null,null,null,null,null,null,null,null,"L27"]
[null,null,null,47,"W47",null,null,null,null,null,null,null,null,null,"W44",44,null,"L15"]
[11,null,"W11",null,null,null,null,null,null,null,null,null,null,null,null,null,"W24",24]
[null,null,30,"W30",null,null,null,null,null,null,null,"W58",58,"W52",52,"W40",40,"L16"]
[12,null,"W12",null,null,null,null,null,null,null,null,null,null,null,null,null,"L28"]
[null,null,null,null,56,"W56",null,null,null,null,"L57",null,null,null,"L45"]
[13,null,"W13",null,null,null,null,null,null,"W62",62]
[null,null,31,"W31",null,null,null,null,null,null,"L58",null,"L56"]
[14,null,"W14"]
[null,null,null,48,"W48"]
[15,null,"W15"]
[null,null,32,"W32"]
[16,null,"W16"]